bitfinex-derivatives/quotes_ETHF0:USTF0_20250411
["timestamp","ask_amount","ask_price","bid_price","bid_amount"]
[1744413449885,2.99661,1562.1,1562.0,4.326]
[1744413450788,2.99661,1562.1,1562.0,5.60689]
[1744413450987,2.99661,1562.1,1562.0,4.326]
[1744413451283,2.99661,1562.1,1562.0,5.60689]
[1744413452581,2.99661,1562.1,1562.0,4.326]
[1744413452788,1.7158,1562.1,1562.0,5.60689]
[1744413453084,1.7158,1562.1,1562.0,7.22859]
[1744413453982,2.99661,1562.1,1562.0,7.22859]
[1744413454287,2.99661,1562.1,1562.0,5.9477]
[1744413455082,2.99661,1562.1,1562.0,4.326]
[1744413456687,2.99661,1562.1,1562.0,5.60689]
[1744413457191,2.99661,1562.1,1562.0,4.326]
[1744413457488,2.99661,1562.1,1562.0,5.60689]
[1744413457690,2.99661,1562.1,1562.0,6.0038]
[1744413460888,2.99661,1562.1,1562.0,4.326]
[1744413463794,1.28089,1562.0,1561.9,0.00959601]
[1744413464091,3.87529,1562.0,1561.9,0.00959601]
[1744413464298,3.20244,1561.9,1561.2,8.78035]
[1744413464492,3.2078,1561.6,1561.5,1.2813]
[1744413464900,4.4889,1561.8,1561.7,1.28114]
[1744413465596,3.2078,1561.8,1561.7,3.58744]
[1744413465795,1.29062601,1561.9,1561.8,1.28106]
[1744413466093,1.29056601,1561.9,1561.8,3.04136]
[1744413466299,1.29056601,1561.9,1561.8,7.33236]
[1744413466692,0.00959601,1561.9,1561.8,7.33236]
[1744413466893,0.00959601,1561.9,1561.8,12.33236]
[1744413467101,1.28083,1562.1,1562.0,1.28083]
[1744413467301,1.28079,1562.2,1562.1,1.2808]
[1744413467594,7.58739092,1562.2,1562.1,9.5235]
[1744413468096,7.58739092,1562.2,1562.1,8.2427]
[1744413468500,7.58739092,1562.2,1562.1,9.52351]
[1744413468705,6.30660092,1562.2,1562.1,14.52351]
[1744413471303,1.29024601,1562.3,1562.2,1.28073]
[1744413471505,1.29024601,1562.3,1562.2,6.17203]
[1744413471900,1.29024601,1562.3,1562.2,2.96423]
[1744413475001,1.28073,1562.2,1562.1,2.2367]
[1744413475209,3.05223,1562.2,1562.1,8.1971]
[1744413475599,6.7715,1562.2,1561.6,0.00639732]
[1744413475808,1.28114,1561.7,1561.6,0.00639732]
[1744413476202,10.19424,1561.7,1561.6,0.00639732]
[1744413476798,5.19424,1561.7,1561.6,0.00639732]
[1744413477613,4.08284,1561.7,1561.6,0.00639732]
[1744413477804,3.00964,1561.7,1561.6,0.00639732]
[1744413478005,1.28114,1561.7,1561.6,1.62629732]
[1744413478210,3.00957,1561.8,1561.7,1.28114]
[1744413478404,1.28114,1561.7,1561.6,2.90746732]
[1744413478802,1.28114,1561.7,1561.6,1.62629732]
[1744413479511,1.28114,1561.7,1561.6,1.61871831]
[1744413479812,1.28114,1561.7,1561.6,2.89993831]
[1744413480216,1.28114,1561.7,1561.6,1.61871831]
[1744413481615,1.28122,1561.6,1561.5,0.00959601]
[1744413481918,11.3459,1561.6,1560.8,12.77510632]
[1744413482210,1.28253,1560.0,1559.9,33.98103152]
[1744413482410,1.28311,1559.3,1559.2,74.14257123]
[1744413482615,1.28352,1558.8,1558.7,61.62803114]
[1744413482808,1.28352,1558.8,1558.7,60.33610114]
[1744413483015,3.2078,1559.5,1558.7,79.06808428]
[1744413483204,4.8839,1559.5,1559.0,21.93978314]
[1744413483402,4.8839,1559.5,1559.1,5.345]
[1744413483612,3.2078,1559.9,1559.3,25.14758314]
[1744413483811,3.2078,1559.7,1559.3,35.23420601]
[1744413484004,3.2078,1559.5,1559.1,3.2078]
[1744413484205,2.32194741,1559.6,1559.3,21.93978314]
[1744413484406,0.64584741,1559.6,1559.4,12.77511233]
[1744413484615,0.64584741,1559.6,1559.4,53.96618915]
[1744413484817,0.64584741,1559.5,1559.4,1.28303]
[1744413485013,0.00959601,1559.7,1559.5,1.2829]
[1744413485220,0.00959601,1559.7,1559.6,30.49558314]
[1744413485418,0.00959601,1559.7,1559.6,62.52198915]
[1744413485617,16.35972725,1560.1,1559.8,21.93978314]
[1744413485915,16.35972725,1560.1,1559.9,27.28778314]
[1744413486114,16.35972725,1560.1,1559.9,59.31418915]
[1744413486418,16.35972725,1560.1,1560.0,32.02640601]
[1744413486614,16.35972725,1560.1,1560.0,57.17398915]
[1744413487016,0.00959601,1560.2,1560.0,63.45651915]
[1744413487219,4.8614,1560.6,1560.1,53.96618915]
[1744413487417,1.28256,1560.0,1559.6,4.49059]
[1744413487619,3.2078,1560.0,1559.6,1.7024]
[1744413487811,3.2078,1559.8,1559.2,3.2078]
[1744413488123,9.02536791,1559.7,1559.1,7.0514]
[1744413488423,1.28298,1559.5,1559.3,21.94937915]
[1744413488609,1.28298,1559.5,1559.4,7.2715]
[1744413488810,1.28298,1559.5,1559.4,39.29790601]
[1744413489113,1.28293,1559.6,1559.4,39.29790601]
[1744413489313,1.7169,1559.6,1559.4,33.69490601]
[1744413489515,1.7169,1559.6,1559.5,10.09374]
[1744413489814,0.00959601,1559.7,1559.5,64.44548915]
[1744413490011,1.29237601,1559.7,1559.6,32.02640601]
[1744413490216,9.62548006,1559.7,1559.6,32.02640601]
[1744413490417,8.34270006,1559.7,1559.6,20.57514101]
[1744413490616,8.34270006,1559.7,1559.6,48.79778415]
[1744413490813,4.49011,1560.3,1559.9,1.28256]
[1744413491018,1.28245,1560.1,1560.0,1.6685]
[1744413491212,1.28253,1560.0,1559.9,20.57514101]
[1744413491411,3.2078,1560.1,1559.5,5.4886]
[1744413491612,4.49028,1560.1,1559.8,28.82746314]
[1744413491919,4.49987601,1560.1,1559.9,1.7202]
[1744413492120,1.28253,1560.0,1559.9,22.29534101]
[1744413492320,1.6834,1560.0,1559.9,5.605]
[1744413492620,3.78370443,1560.0,1559.9,5.605]
[1744413493214,0.81777443,1560.0,1559.9,38.95525334]
[1744413493417,2.10030443,1560.0,1559.9,5.605]
[1744413493723,0.81777443,1560.0,1559.9,48.11992415]
[1744413494020,0.81777443,1560.0,1559.9,49.40254415]
[1744413494320,0.81777443,1560.0,1559.9,51.12274415]
[1744413494822,0.81777443,1560.0,1559.9,56.12274415]
[1744413495017,0.81777443,1560.0,1559.9,54.84012415]
[1744413495219,7.03257167,1560.0,1559.9,54.39003698]
[1744413495515,7.03257167,1560.0,1559.9,40.95437225]
[1744413495720,7.03257167,1560.0,1559.9,41.40445942]
[1744413496322,7.03257167,1560.0,1559.9,36.40445942]
[1744413496520,7.03257167,1560.0,1559.9,40.95437225]
[1744413497020,4.14152207,1560.0,1559.9,30.79945942]
[1744413497219,4.14152207,1560.0,1559.9,35.34937225]
[1744413497422,4.14152207,1560.0,1559.9,138.70337225]
[1744413497627,4.88932093,1560.0,1559.9,137.36125942]
[1744413498424,4.88932093,1560.0,1559.9,131.75525942]
[1744413498633,4.88932093,1560.0,1559.9,138.70337225]
[1744413499419,4.88932093,1560.0,1559.9,133.09737225]
[1744413499724,12.16203886,1560.0,1559.6,1.28284]
[1744413499917,1.28275,1559.8,1559.7,34.68541942]
[1744413500125,1.2827,1559.8,1559.7,12.74563628]
[1744413500324,1.2827,1559.8,1559.7,34.68541942]
[1744413500632,0.74779886,1559.8,1559.7,34.68541942]
[1744413501129,0.74779886,1559.8,1559.7,39.23533225]
[1744413501643,0.74779886,1559.8,1559.7,34.68541942]
[1744413501932,6.17202093,1559.8,1559.7,34.68541942]
[1744413502229,6.17202093,1559.8,1559.7,19.6090665]
[1744413502520,4.88932093,1559.8,1559.7,20.8918465]
[1744413502720,4.88932093,1559.8,1559.7,15.2858465]
[1744413502924,4.88932093,1559.8,1559.7,20.8918465]
[1744413503321,6.17202093,1559.8,1559.7,22.5633465]
[1744413503631,4.88932093,1559.8,1559.7,22.5633465]
[1744413504124,4.88932093,1559.8,1559.7,21.22123367]
[1744413504621,4.88932093,1559.8,1559.7,25.7711465]
[1744413505621,0.74779886,1559.8,1559.7,25.7711465]
[1744413506429,1.2130235,1559.8,1559.7,25.7711465]
[1744413506626,2.4957235,1559.8,1559.7,18.8823665]
[1744413506819,1.28333,1559.1,1559.0,1.28333]
[1744413507016,1.28319,1559.2,1559.1,9.45315367]
[1744413507222,0.46498527,1559.2,1559.1,6.88927]
[1744413507417,1.21278413,1559.2,1559.1,16.34242367]
[1744413507721,0.74779886,1559.2,1559.1,21.34242367]
[1744413508024,1.28289,1559.6,1559.5,1.28289]
[1744413508323,1.29237601,1559.7,1559.6,9.45315367]
[1744413508519,2.2559095,1559.7,1559.6,10.73595367]
[1744413508720,2.25668289,1559.7,1559.6,10.73595367]
[1744413508921,2.25668289,1559.7,1559.6,10.73601367]
[1744413509324,2.25668289,1559.7,1559.6,9.45315367]
[1744413509534,2.25668289,1559.7,1559.6,10.73601367]
[1744413509832,2.25668289,1559.7,1559.6,1.28286]
[1744413510234,9.18170289,1559.7,1559.1,3.2078]
[1744413510528,3.91402688,1559.6,1559.5,1.28294]
[1744413510726,3.91403688,1559.6,1559.5,6.88994]
[1744413511129,3.91403688,1559.6,1559.5,5.607]
[1744413511323,3.91403688,1559.6,1559.5,6.88994]
[1744413511733,0.96430688,1559.6,1559.5,16.34309367]
[1744413512426,2.24716688,1559.6,1559.5,8.53114]
[1744413512928,3.88736688,1559.6,1559.5,2.92414]
[1744413513134,2.60450688,1559.6,1559.5,5.607]
[1744413513333,2.60450688,1559.6,1559.5,16.34309367]
[1744413513536,0.96430688,1559.6,1559.5,16.34309367]
[1744413513832,1.78223035,1559.6,1559.5,16.34309367]
[1744413514032,1.78223035,1559.6,1559.5,19.55089367]
[1744413514236,1.78223035,1559.6,1559.5,117.33089367]
[1744413514535,1.78586102,1559.6,1559.5,121.8808065]
[1744413515531,1.78586102,1559.6,1559.5,110.44095367]
[1744413515737,4.84112102,1559.6,1559.5,103.387]
[1744413515939,4.84112102,1559.6,1559.5,114.12309367]
[1744413516238,4.84112102,1559.6,1559.5,112.84015367]
[1744413516436,3.55826102,1559.6,1559.5,114.12309367]
[1744413516633,3.55826102,1559.6,1559.5,108.51609367]
[1744413516830,5.11641959,1559.6,1559.5,117.33089367]
[1744413517032,6.39927959,1559.6,1559.5,117.33089367]
[1744413517752,6.39927959,1559.6,1559.5,121.8808065]
[1744413517969,5.11641959,1559.6,1559.5,121.8808065]
[1744413518649,5.11989437,1559.6,1559.5,124.6935065]
[1744413518843,6.40275437,1559.6,1559.5,124.6935065]
[1744413519041,5.11989437,1559.6,1559.5,124.6935065]
[1744413519249,7.1800646,1559.6,1559.5,124.6935065]
[1744413520139,7.18049197,1559.6,1559.5,124.6935065]
[1744413520339,9.04137246,1559.6,1559.5,124.6935065]
[1744413520635,7.75851246,1559.6,1559.5,125.14359367]
[1744413520837,15.49233817,1559.8,1559.7,1.28278]
[1744413521035,15.49233817,1559.8,1559.7,13.94373367]
[1744413521036,15.99483048,1559.8,1559.7,13.94373367]
[1744413521341,15.99483048,1559.8,1559.7,21.78793367]
[1744413521841,15.99476468,1559.8,1559.7,21.78793367]
[1744413522271,15.99476468,1559.8,1559.7,22.32493367]
[1744413523165,15.99476468,1559.8,1559.7,27.32493367]
[1744413523460,1.32001983,1559.8,1559.7,20.98445081]
[1744413523658,9.83e-06,1559.8,1559.7,20.98445081]
[1744413526854,9.83e-06,1559.8,1559.7,24.01905081]
[1744413527470,8.36071135,1559.8,1559.7,24.01905081]
[1744413527714,9.64354135,1559.8,1559.7,5.536]
[1744413527871,11.29804135,1559.8,1559.7,6.81891]
[1744413528072,10.01521135,1559.8,1559.7,6.81891]
[1744413528478,11.29804135,1559.8,1559.7,6.81891]
[1744413528772,10.01521135,1559.8,1559.7,15.98358081]
[1744413529172,8.36071135,1559.8,1559.7,15.98358081]
[1744413529473,8.36071135,1559.8,1559.7,17.66858081]
[1744413530178,9.97751135,1559.8,1559.7,17.66858081]
[1744413530380,11.26034135,1559.8,1559.7,17.66858081]
[1744413530674,18.06296327,1559.8,1559.7,6.81891]
[1744413530875,18.06296327,1559.8,1559.5,103.79986]
[1744413531077,16.78013327,1559.8,1559.7,10.44758081]
[1744413531283,16.78013327,1559.8,1559.7,1.28291]
[1744413531476,16.78013327,1559.8,1559.7,6.81891]
[1744413531977,18.06296327,1559.8,1559.7,1.28291]
[1744413532278,16.78013327,1559.8,1559.7,6.81891]
[1744413532674,16.78013327,1559.8,1559.7,15.98358081]
[1744413532867,17.20540688,1559.8,1559.7,15.98358081]
[1744413533068,17.20540538,1559.8,1559.7,15.98358081]
[1744413533261,17.20540538,1559.8,1559.7,9.16467081]
[1744413533476,3.20728,1559.7,1559.3,100.9771]
[1744413533671,2.18227211,1559.6,1559.4,14.70067081]
[1744413533873,2.18227211,1559.5,1559.4,15.98383081]
[1744413534070,2.74820959,1559.5,1559.4,15.98383081]
[1744413534273,2.74820959,1559.5,1559.4,10.44783081]
[1744413534569,2.74820959,1559.5,1559.4,15.98383081]
[1744413535359,2.74820959,1559.5,1559.4,10.44783081]
[1744413535553,2.74820959,1559.5,1559.4,15.98383081]
[1744413536143,2.74820959,1559.5,1559.4,15.98483081]
[1744413536553,2.74820959,1559.5,1559.4,10.44783081]
[1744413536750,2.32293748,1559.5,1559.4,17.65423081]
[1744413536946,2.74806442,1559.5,1559.4,17.65423081]
[1744413537348,3.2079,1559.4,1559.1,1.2834]
[1744413537651,3.63304287,1559.3,1559.2,15.98493081]
[1744413537854,5.33314287,1559.3,1559.2,15.98493081]
[1744413538152,5.89908035,1559.3,1559.2,6.82026]
[1744413538454,2.26603748,1559.3,1559.2,15.98493081]
[1744413538646,0.56593748,1559.3,1559.2,17.21773081]
[1744413538846,4.9079,1559.5,1559.4,1.28316]
[1744413539153,4.9079,1559.5,1559.4,10.44783081]
[1744413539154,5.33314871,1559.5,1559.4,10.44783081]
[1744413539342,4.9079,1559.5,1559.4,10.44783081]
[1744413539955,13.33311377,1559.5,1559.4,10.44783081]
[1744413540154,10.12531377,1559.5,1559.4,10.44783081]
[1744413540451,10.69128805,1559.5,1559.4,10.44783081]
[1744413541351,14.32438306,1559.5,1559.4,10.44783081]
[1744413542151,15.60745306,1559.5,1559.4,10.44783081]
[1744413542652,14.32438306,1559.5,1559.4,10.44783081]
[1744413542846,14.32438306,1559.5,1559.4,1.28316]
[1744413543545,14.32438306,1559.5,1559.4,10.44783081]
[1744413543745,12.62434589,1559.5,1559.4,10.44783081]
[1744413543952,8.99118805,1559.5,1559.4,10.44783081]
[1744413544355,1.80919047,1559.5,1559.4,10.44783081]
[1744413544548,3.51589047,1559.5,1559.4,10.44783081]
[1744413544749,3.09055355,1559.5,1559.4,10.44783081]
[1744413545446,2.52457927,1559.5,1559.4,12.10863081]
[1744413547249,0.81787927,1559.5,1559.4,17.10863081]
[1744413547750,0.81787927,1559.5,1559.4,12.10863081]
[1744413548056,0.81787927,1559.5,1559.4,17.10863081]
[1744413548454,0.81787927,1559.5,1559.4,22.64563081]
[1744413549258,9.27e-06,1559.5,1559.4,25.85343081]
[1744413550458,4.21365663,1559.5,1559.4,25.85343081]
[1744413550656,4.21365663,1559.5,1559.4,20.85343081]
[1744413551159,4.21365663,1559.5,1559.4,15.31643081]
[1744413551356,4.21365663,1559.5,1559.4,17.49263081]
[1744413551553,4.21365663,1559.5,1559.4,12.10863081]
[1744413551753,4.21365663,1559.5,1559.4,17.49263081]
[1744413553461,1.6139,1559.6,1559.5,1.28307]
[1744413553652,2.03944377,1559.6,1559.5,1.28307]
[1744413553854,2.03944377,1559.6,1559.5,5.5407989]
[1744413554059,2.60577846,1559.6,1559.5,10.9247989]
[1744413554461,2.60577846,1559.6,1559.5,6.8238689]
[1744413554661,2.60577846,1559.6,1559.5,12.2078689]
[1744413554958,2.60602581,1559.6,1559.5,12.2078689]
[1744413556864,2.60602581,1559.6,1559.5,15.0783689]
[1744413559065,2.60602581,1559.6,1559.5,16.2510689]
[1744413560264,0.99212581,1559.6,1559.5,16.2510689]
[1744413560667,0.99301118,1559.6,1559.5,16.2510689]
[1744413562466,0.9930471,1559.6,1559.5,16.2510689]
[1744413565664,4.14e-06,1559.6,1559.5,16.2510689]
[1744413565854,22.77962927,1559.8,1559.5,21.2510689]
[1744413566058,22.77962927,1559.8,1559.7,6.8237089]
[1744413566259,22.77962927,1559.8,1559.7,104.5997089]
[1744413566465,22.77962927,1559.8,1559.7,106.3674089]
[1744413566868,21.49654927,1559.8,1559.7,106.3674089]
[1744413567662,18.34912927,1559.8,1559.7,106.3674089]
[1744413568069,8.43480978,1559.9,1559.8,1.28283]
[1744413568261,6.27786519,1559.9,1559.8,18.3538289]
[1744413568561,2.72713519,1559.9,1559.8,18.3538289]
[1744413568768,1.11042519,1559.9,1559.8,18.3538289]
[1744413568968,5.19e-06,1559.9,1559.8,18.3538289]
[1744413569765,5.19e-06,1559.9,1559.8,18.83824758]
[1744413569965,5.19e-06,1559.9,1559.8,8.55374758]
[1744413570163,5.19e-06,1559.9,1559.8,13.93774758]
[1744413571863,5.91033692,1560.0,1559.9,1.28274]
[1744413572064,5.91033692,1560.0,1559.9,8.4295389]
[1744413574672,5.91033692,1560.0,1559.9,6.8235389]
[1744413574968,2.50765399,1560.0,1559.9,6.8235389]
[1744413575770,2.50765399,1560.0,1559.9,11.9515389]
[1744413579672,2.50765399,1560.0,1559.9,1.28274]
[1744413579973,2.50765399,1560.0,1559.9,6.41074]
[1744413580874,5.90636392,1560.0,1559.9,6.41074]
[1744413581275,5.90636392,1560.0,1559.9,11.9515389]
[1744413581667,5.90636392,1560.0,1559.9,13.5901389]
[1744413584177,5.90636392,1560.0,1559.9,11.9515389]
[1744413585376,5.90636392,1560.0,1559.9,6.8235389]
[1744413585576,5.90636392,1560.0,1559.9,6.40974]
[1744413586576,6.4491941,1560.0,1559.9,6.40974]
[1744413587079,7.26673301,1560.0,1559.9,6.40974]
[1744413587277,6.72390283,1560.0,1559.9,6.40974]
[1744413587887,6.72390283,1560.0,1559.9,11.9505389]
[1744413588581,6.72390283,1560.0,1559.9,14.8912389]
[1744413590182,6.72390283,1560.0,1559.9,18.0990389]
[1744413592180,6.72390283,1560.0,1559.9,10.78604]
[1744413592486,17.16962334,1560.0,1559.9,5.127]
[1744413592781,18.29404334,1560.0,1559.9,6.40962]
[1744413592978,16.19389443,1560.0,1559.9,1.28262]
[1744413593275,16.19389443,1560.0,1559.9,6.40962]
[1744413593678,17.47646443,1560.0,1559.9,5.127]
[1744413594278,16.19389443,1560.0,1559.9,6.40962]
[1744413595401,7.98609443,1560.0,1559.9,6.40962]
[1744413595577,2.64542652,1560.0,1559.9,11.9504189]
[1744413597986,2.23359429,1560.0,1559.9,11.9504189]
[1744413598185,2.23359429,1560.0,1559.9,13.6134189]
[1744413599382,7.70289656,1560.0,1559.9,16.8212189]
[1744413599782,5.05991656,1560.0,1559.9,11.6942189]
[1744413599982,5.05991656,1560.0,1559.9,16.8222189]
[1744413600491,3.29616656,1560.0,1559.9,16.8222189]
[1744413600791,1.27063656,1560.0,1559.9,21.8222189]
[1744413600983,6.56e-06,1560.0,1559.9,21.8222189]
[1744413601688,3.88e-06,1560.1,1560.0,6.8233289]
[1744413601886,3.88e-06,1560.1,1560.0,9.7004289]
[1744413602591,2.15251078,1560.1,1560.0,9.7004289]
[1744413602787,7.8e-07,1560.1,1560.0,14.7004289]
[1744413603791,7.8e-07,1560.1,1560.0,9.7004289]
[1744413606495,7.8e-07,1560.1,1560.0,14.6364289]
[1744413607293,1.6949,1560.3,1560.2,1.28237]
[1744413607687,1.6949,1560.3,1560.2,6.21837]
[1744413607881,1.6949,1560.3,1560.2,1.28237]
[1744413608085,1.6949,1560.3,1560.2,6.21837]
[1744413608394,1.6949,1560.3,1560.2,1.28237]
[1744413608793,1.6949,1560.3,1560.2,6.21837]
[1744413609598,1.6949,1560.3,1560.2,1.28237]
[1744413609796,1.6949,1560.3,1560.2,6.21837]
[1744413610689,1.6949,1560.3,1560.2,1.28237]
[1744413610889,1.6949,1560.3,1560.2,6.21837]
[1744413611797,1.6949,1560.3,1560.2,1.28237]
[1744413611993,1.6949,1560.3,1560.2,6.21837]
[1744413612696,1.6949,1560.3,1560.2,1.28237]
[1744413612899,6.6949,1560.3,1560.2,6.21837]
[1744413613100,7.8308,1560.3,1560.2,6.21837]
[1744413613286,3.16733864,1560.3,1560.2,1.28237]
[1744413613494,3.16733864,1560.3,1560.2,6.21837]
[1744413613789,2.8308,1560.3,1560.2,6.21837]
[1744413614208,1.6949,1560.3,1560.2,6.21837]
[1744413614404,1.6949,1560.3,1560.2,11.7591689]
[1744413614596,1.6949,1560.3,1560.2,14.0458689]
[1744413616090,1.6949,1560.3,1560.2,10.42382826]
[1744413620009,8.44637381,1560.4,1560.3,1.28229]
[1744413620214,8.44637381,1560.4,1560.3,7.35214826]
[1744413621719,10.58617381,1560.5,1560.4,1.2822]
[1744413621913,10.92290432,1560.5,1560.4,3.20095826]
[1744413622109,10.92290432,1560.5,1560.4,1.2822]
[1744413623313,10.58617381,1560.5,1560.4,3.20095826]
[1744413623810,10.58617381,1560.5,1560.4,5.30475826]
[1744413625809,2.95714425,1560.5,1560.4,3.20095826]
[1744413626110,3.29427905,1560.5,1560.4,1.2822]
[1744413626308,5.18127905,1560.5,1560.4,1.2822]
[1744413626608,4.84414425,1560.5,1560.4,1.2822]
[1744413626811,5.18136964,1560.5,1560.4,1.2822]
[1744413628613,5.18160304,1560.5,1560.4,1.2822]
[1744413630113,3.29460304,1560.5,1560.4,3.20095826]
[1744413631416,3.29460304,1560.5,1560.4,1.2822]
[1744413632716,3.29460304,1560.5,1560.4,3.20095826]
[1744413634219,3.29460304,1560.5,1560.4,100.93195826]
[1744413634409,3.29460304,1560.5,1560.4,103.12095826]
[1744413635016,1.15480304,1560.5,1560.4,103.12095826]
[1744413635717,0.81734425,1560.5,1560.4,103.12095826]
[1744413636819,0.81734425,1560.5,1560.4,106.32875826]
[1744413640321,0.81734425,1560.5,1560.4,103.7582]
[1744413641320,2.266,1560.6,1560.5,1.28212]
[1744413641516,2.60327128,1560.6,1560.5,1.28212]
[1744413642760,2.266,1560.6,1560.5,3.20087826]
[1744413644662,3.08324312,1560.6,1560.5,3.20087826]
[1744413645054,3.08324312,1560.6,1560.5,5.62277826]
[1744413650135,0.81724312,1560.6,1560.5,7.58677826]
[1744413650340,3.12e-06,1560.6,1560.5,12.58677826]
[1744413652542,8.44637381,1560.9,1560.8,1.28188]
[1744413652744,8.78389056,1560.9,1560.8,7.94463826]
[1744413653138,8.78387987,1560.9,1560.8,7.94463826]
[1744413653439,11.24697987,1560.9,1560.8,6.02588]
[1744413653644,1.28188,1560.8,1560.7,0.00959601]
[1744413653943,2.80060606,1560.8,1560.7,6.03555601]
[1744413656447,25.99909468,1560.8,1560.7,6.03555601]
[1744413656649,30.99909468,1560.8,1560.7,4.75359601]
[1744413656845,30.99905314,1560.8,1560.7,4.75359601]
[1744413657947,30.99905314,1560.8,1560.7,6.03555601]
[1744413658140,30.99905314,1560.8,1560.7,4.75359601]
[1744413658347,30.99905314,1560.8,1560.7,6.03555601]
[1744413659347,30.99905314,1560.8,1560.7,4.75359601]
[1744413660051,22.55267933,1560.8,1560.7,0.00959601]
[1744413660361,1.28201,1560.7,1560.6,1.28201]
[1744413660556,11.42617452,1560.7,1560.6,6.02601]
[1744413661254,11.42617452,1560.7,1560.6,4.744]
[1744413661761,11.42617452,1560.7,1560.6,6.02604]
[1744413663657,11.42617452,1560.7,1560.6,1.28204]
[1744413663853,11.42617452,1560.7,1560.6,6.02704]
[1744413664151,10.14416452,1560.7,1560.6,6.02704]
[1744413665555,11.42612452,1560.7,1560.6,6.02704]
[1744413666253,11.42612452,1560.7,1560.6,4.745]
[1744413666453,11.42612452,1560.7,1560.6,6.02704]
[1744413666657,8.14086452,1560.7,1560.6,7.94579826]
[1744413666957,9.42282452,1560.7,1560.6,7.94579826]
[1744413667150,9.42282452,1560.7,1560.6,6.66375826]
[1744413667552,9.4226439,1560.7,1560.6,6.66375826]
[1744413668148,9.4226439,1560.7,1560.6,4.745]
[1744413669460,9.42265437,1560.7,1560.6,4.745]
[1744413669960,33.48621179,1560.7,1560.6,4.745]
[1744413670164,33.48621179,1560.7,1560.6,6.02704]
[1744413670358,33.48621179,1560.7,1560.6,4.745]
[1744413670953,33.48621179,1560.7,1560.6,6.02704]
[1744413671153,33.48621179,1560.7,1560.5,2.48309601]
[1744413671154,1.28204,1560.6,1560.5,0.00959601]
[1744413671354,1.28204,1560.6,1560.5,4.63259601]
[1744413671355,6.01093437,1560.6,1560.5,4.63259601]
[1744413671662,11.01093437,1560.6,1560.5,4.63259601]
[1744413673159,30.89190806,1560.6,1560.5,4.63259601]
[1744413673862,30.89190806,1560.6,1560.5,4.63359601]
[1744413674258,30.89190806,1560.6,1560.5,0.00959601]
[1744413674463,30.89190806,1560.6,1560.5,4.63359601]
[1744413677367,1.28212,1560.5,1560.4,98.74229613]
[1744413677568,7.10661108,1560.5,1560.4,98.74229613]
[1744413677768,7.10661108,1560.5,1560.4,103.36629613]
[1744413678471,0.33709108,1560.5,1560.4,105.28505439]
[1744413678662,0.33709108,1560.5,1560.4,109.80835439]
[1744413679170,27.16057369,1560.6,1560.5,1.28212]
[1744413679359,25.21810903,1560.6,1560.5,7.62987826]
[1744413679769,25.21810903,1560.6,1560.5,12.62987826]
[1744413680067,24.88097369,1560.6,1560.5,12.62987826]
[1744413680263,26.50017415,1560.6,1560.5,12.62987826]
[1744413680769,25.21821647,1560.6,1560.5,12.62987826]
[1744413681469,25.218241,1560.6,1560.5,12.62987826]
[1744413681775,25.218241,1560.6,1560.5,7.62987826]
[1744413682068,26.500281,1560.6,1560.5,6.34775826]
[1744413682267,26.500281,1560.6,1560.5,4.429]
[1744413682466,4.80472358,1560.6,1560.5,4.429]
[1744413682662,3.52268358,1560.6,1560.5,4.429]
[1744413682868,1.15468358,1560.6,1560.5,7.62987826]
[1744413686964,0.81741627,1560.6,1560.5,7.62987826]
[1744413687364,1.15496675,1560.6,1560.5,7.62987826]
[1744413688270,1.15495263,1560.6,1560.5,7.62987826]
[1744413688470,0.81741627,1560.6,1560.5,7.62987826]
[1744413689667,7.17250697,1560.6,1560.5,7.62987826]
[1744413695070,7.17250697,1560.6,1560.5,10.83767826]
[1744413695676,7.17250697,1560.6,1560.5,15.83767826]
[1744413695878,4.03104697,1560.6,1560.5,15.83767826]
[1744413696072,2.49060697,1560.6,1560.5,15.83767826]
[1744413696274,0.75318697,1560.6,1560.5,15.83767826]
[1744413696474,6.97e-06,1560.6,1560.5,15.83767826]
[1744413699081,10.59332261,1560.9,1560.8,1.28188]
[1744413699282,10.59332261,1560.9,1560.8,10.92243826]
[1744413699582,10.59332261,1560.9,1560.8,14.06683826]
[1744413699780,10.59332261,1560.9,1560.8,3.32158]
[1744413699985,10.59332261,1560.9,1560.8,5.79588]
[1744413700185,16.68605797,1561.1,1560.9,1.28177]
[1744413700488,6.66881751,1561.0,1560.9,1.28177]
[1744413700981,11.66881751,1561.0,1560.9,1.28177]
[1744413701381,11.66880062,1561.0,1560.9,1.28177]
[1744413702176,6.66880062,1561.0,1560.9,1.28177]
[1744413702984,6.332,1561.0,1560.9,1.28177]
[1744413704182,6.66868788,1561.0,1560.9,1.28177]
[1744413704679,6.66865996,1561.0,1560.9,1.28177]
[1744413704875,6.332,1561.0,1560.9,1.28177]
[1744413705388,6.66869919,1561.0,1560.9,1.28177]
[1744413705581,6.332,1561.0,1560.9,1.28177]
[1744413705887,6.6686823,1561.0,1560.9,1.28177]
[1744413706385,6.332,1561.0,1560.9,1.28177]
[1744413706586,6.66872172,1561.0,1560.9,1.28177]
[1744413706990,6.332,1561.0,1560.9,1.28177]
[1744413707384,6.66878253,1561.0,1560.9,1.28177]
[1744413708591,6.66878253,1561.0,1560.8,7.71869]
[1744413708592,11.15831253,1561.0,1560.8,4.514]
[1744413708885,2.5104,1560.9,1560.8,5.79588]
[1744413712197,1.28196,1560.7,1560.6,1.28202]
[1744413712383,4.48976,1560.7,1560.6,5.79502]
[1744413712690,3.54464171,1560.7,1560.6,5.79502]
[1744413713087,7.73544171,1560.7,1560.6,5.79502]
[1744413713381,10.14214171,1560.7,1560.6,5.79502]
[1744413713586,6.5975,1560.7,1560.6,7.71377826]
[1744413715688,4.4147,1560.7,1560.6,7.71377826]
[1744413715888,4.4147,1560.7,1560.6,10.14157826]
[1744413716091,5.3825,1560.9,1560.8,1.28188]
[1744413716291,7.88136723,1560.9,1560.8,3.20063826]
[1744413716487,7.88140903,1560.9,1560.8,1.28188]
[1744413717391,10.29830903,1560.9,1560.8,1.28188]
[1744413718590,10.29843216,1560.9,1560.8,1.28188]
[1744413718793,7.09063216,1560.9,1560.8,1.28188]
[1744413719786,8.37242216,1560.9,1560.8,1.28188]
[1744413721595,8.37251564,1560.9,1560.8,1.28188]
[1744413721792,7.09072564,1560.9,1560.8,1.28188]
[1744413721989,4.91602564,1560.9,1560.8,1.28188]
[1744413722293,4.5788,1560.9,1560.8,3.44078]
[1744413722794,4.5788,1560.9,1560.8,7.95378]
[1744413723282,4.5788,1560.9,1560.8,10.31738]
[1744413723687,2.4169,1560.9,1560.8,12.23613826]
[1744413724897,2.4169,1560.9,1560.8,15.44393826]